bitfinex/quotes_BTCUSD_20230111
["timestamp","ask_amount","ask_price","bid_price","bid_amount"]
[1673478902314,0.73257089,17573.0,17572.0,0.003]
[1673478903321,1.30810913,17573.0,17572.0,0.003]
[1673478903575,1.29679156,17573.0,17572.0,0.003]
[1673478903847,1.29679156,17573.0,17572.0,0.35606277]
[1673478903848,0.361817,17573.0,17572.0,0.35606277]
[1673478904098,0.361817,17573.0,17572.0,0.91401004]
[1673478904099,0.355,17573.0,17572.0,0.91401004]
[1673478904347,0.355,17573.0,17572.0,1.84886868]
[1673478904600,0.355,17573.0,17572.0,1.82856868]
[1673478904850,0.355,17573.0,17572.0,1.82866868]
[1673478905351,0.36664803,17573.0,17572.0,1.82866868]
[1673478905853,0.36654306,17573.0,17572.0,1.82866868]
[1673478906102,0.67504306,17573.0,17572.0,2.03153555]
[1673478906349,0.66339503,17573.0,17572.0,2.03153555]
[1673478907102,0.66329006,17573.0,17572.0,2.03153555]
[1673478907645,0.67448464,17573.0,17572.0,2.03153555]
[1673478908244,0.67437967,17573.0,17572.0,2.03153555]
[1673478908381,0.66108826,17573.0,17572.0,2.03153555]
[1673478908885,0.64989368,17573.0,17572.0,2.03153555]
[1673478909142,0.64978871,17573.0,17572.0,2.03153555]
[1673478910184,0.64968374,17573.0,17572.0,2.03153555]
[1673478911236,0.64957877,17573.0,17572.0,2.03153555]
[1673478911751,0.34107877,17573.0,17572.0,2.33923555]
[1673478912033,0.34107877,17573.0,17572.0,1.75951039]
[1673478912034,0.3409738,17573.0,17572.0,1.75951039]
[1673478913016,6e-05,17574.0,17572.0,2.24651039]
[1673478913277,0.1573441,17579.0,17573.0,3.24060947]
[1673478913541,0.1573441,17579.0,17578.0,0.1081]
[1673478913800,2.1573441,17579.0,17578.0,1.28107947]
[1673478914054,2.1573441,17579.0,17578.0,0.34577789]
[1673478914305,2.1573441,17579.0,17578.0,0.1081]
[1673478914595,2.1658441,17579.0,17578.0,0.1081]
[1673478914817,2.17747124,17579.0,17578.0,0.1081]
[1673478915070,2.47747124,17579.0,17578.0,0.1291]
[1673478915567,2.4658441,17579.0,17578.0,0.70955492]
[1673478916841,2.47714268,17579.0,17578.0,0.70955492]
[1673478918604,2.4658441,17579.0,17578.0,0.70955492]
[1673478919381,3.52528042,17579.0,17578.0,0.021]
[1673478919640,3.74860054,17579.0,17578.0,0.021]
[1673478919888,3.75999745,17579.0,17578.0,0.021]
[1673478920139,3.75999745,17579.0,17575.0,0.82840188]
[1673478920401,2.17477552,17576.0,17575.0,0.24755157]
[1673478920687,2.18327552,17576.0,17575.0,0.24755157]
[1673478920950,1.48327552,17576.0,17575.0,0.24475516]
[1673478921235,1.48327552,17576.0,17575.0,1.18485873]
[1673478921236,0.0085,17576.0,17575.0,1.18485873]
[1673478921491,0.6,17578.0,17575.0,1.29236784]
[1673478921753,0.6,17578.0,17576.0,1.87739114]
[1673478922005,0.6,17578.0,17577.0,1.23314334]
[1673478922518,2.1573441,17579.0,17577.0,1.23314334]
[1673478922769,2.16848541,17579.0,17578.0,1.15117926]
[1673478923020,2.1573441,17579.0,17578.0,1.8266464]
[1673478923269,2.1573441,17579.0,17578.0,1.67189795]
[1673478923774,0.1573441,17579.0,17578.0,1.67085992]
[1673478924025,0.1613441,17579.0,17578.0,1.76494477]
[1673478924281,0.1613441,17579.0,17578.0,0.094]
[1673478924794,1.03611962,17579.0,17578.0,0.094]
[1673478925054,1.04461962,17579.0,17578.0,0.094]
[1673478925307,0.4698441,17579.0,17578.0,0.094]
[1673478926064,0.4658441,17579.0,17576.0,0.2]
[1673478926321,0.6,17577.0,17576.0,0.2]
[1673478926574,1.47450494,17577.0,17576.0,0.2]
[1673478926829,1.48300494,17577.0,17576.0,0.2]
[1673478927853,1.54200494,17577.0,17576.0,0.209]
[1673478928112,1.54200494,17577.0,17576.0,0.21061684]
[1673478928381,1.54200494,17577.0,17576.0,0.209]
[1673478928739,3.54200494,17577.0,17576.0,0.209]
[1673478928909,3.24200494,17577.0,17576.0,0.209]
[1673478929195,3.24200494,17577.0,17576.0,1.74225474]
[1673478929196,2.0675,17577.0,17576.0,1.74225474]
[1673478929453,2.059,17577.0,17576.0,1.86076385]
[1673478929959,2.059,17577.0,17576.0,1.96886385]
[1673478930209,0.059,17577.0,17576.0,1.96886385]
[1673478930479,0.059,17577.0,17576.0,1.46346471]
[1673478930730,0.059,17577.0,17576.0,1.57156471]
[1673478930979,0.059,17577.0,17576.0,2.18807368]
[1673478931241,0.059,17577.0,17576.0,2.07997368]
[1673478931780,2.7573441,17579.0,17576.0,2.07097368]
[1673478932042,0.7573441,17579.0,17577.0,1.25032295]
[1673478932293,0.7573441,17579.0,17578.0,0.93555087]
[1673478932553,1.0658441,17579.0,17578.0,0.57928305]
[1673478933306,1.0658441,17579.0,17577.0,1.50935089]
[1673478933558,1.0658441,17579.0,17578.0,0.022]
[1673478933810,1.0658441,17579.0,17578.0,0.60167357]
[1673478934345,1.0658441,17579.0,17578.0,0.59667357]
[1673478934599,1.07737846,17579.0,17578.0,0.70136974]
[1673478934847,1.12737846,17579.0,17578.0,0.70136974]
[1673478935118,1.07737846,17579.0,17578.0,0.70136974]
[1673478935596,1.1158441,17579.0,17578.0,0.70436974]
[1673478936079,1.1073441,17579.0,17578.0,0.70436974]
[1673478936337,1.1073441,17579.0,17578.0,1.33313709]
[1673478936576,1.11851725,17579.0,17578.0,0.75346352]
[1673478937846,0.51851725,17579.0,17578.0,1.33259185]
[1673478938100,0.2073441,17579.0,17578.0,1.90457885]
[1673478939101,0.1573441,17579.0,17578.0,1.90157885]
[1673478939366,0.1573441,17579.0,17578.0,1.92157885]
[1673478939882,0.1573441,17579.0,17578.0,1.70577885]
[1673478944708,0.7573441,17579.0,17578.0,0.02]
[1673478944971,1.0573441,17579.0,17578.0,0.02]
[1673478945737,1.0573441,17579.0,17577.0,0.77816266]
[1673478946000,0.3,17578.0,17577.0,0.77816266]
[1673478946504,2.3,17578.0,17577.0,0.77816266]
[1673478946762,2.3,17578.0,17577.0,0.2]
[1673478947746,2.3085,17578.0,17577.0,0.2]
[1673478948049,2.3585,17578.0,17577.0,0.203]
[1673478950158,2.3585,17578.0,17577.0,0.30132012]
[1673478950436,2.05,17578.0,17577.0,1.67704485]
[1673478950678,2.05,17578.0,17577.0,1.43936696]
[1673478950889,2.05,17578.0,17577.0,1.79555396]
[1673478951225,0.05,17578.0,17577.0,1.79555396]
[1673478951994,0.35,17578.0,17577.0,1.79555396]
[1673478953084,0.34982998,17578.0,17577.0,1.79555396]
[1673478953578,0.3,17578.0,17577.0,1.79255396]
[1673478953827,0.304,17578.0,17577.0,1.88355396]
[1673478954075,0.004,17578.0,17577.0,1.88355396]
[1673478954599,0.004,17578.0,17577.0,1.22767818]
[1673478954869,0.004,17578.0,17577.0,0.87149118]
[1673478955121,0.0037598,17578.0,17577.0,0.87149118]
[1673478955384,0.3037598,17578.0,17577.0,0.87149118]
[1673478955638,0.3037598,17578.0,17577.0,1.22767818]
[1673478955888,0.3037598,17578.0,17577.0,1.43962657]
[1673478956134,0.30338296,17578.0,17577.0,1.22767818]
[1673478956394,0.31188296,17578.0,17577.0,0.091]
[1673478957188,0.31164212,17578.0,17577.0,0.091]
[1673478957984,0.31140193,17578.0,17577.0,0.09108465]
[1673478958484,0.31140193,17578.0,17577.0,0.81717228]
[1673478958736,0.01140193,17578.0,17577.0,1.50642896]
[1673478958980,0.00266174,17578.0,17577.0,1.86261596]
[1673478960019,0.00242155,17578.0,17577.0,1.86261596]
[1673478960283,0.30242155,17578.0,17577.0,1.86261596]
[1673478960790,0.00242155,17578.0,17577.0,1.86261596]
[1673478961046,0.00218136,17578.0,17577.0,1.86261596]
[1673478962060,0.00194117,17578.0,17577.0,1.86261596]
[1673478963070,0.00170098,17578.0,17577.0,1.86261596]
[1673478963604,0.00170098,17578.0,17577.0,3.17335928]
[1673478963865,0.00170098,17578.0,17577.0,3.28145928]
[1673478964128,0.00146079,17578.0,17577.0,3.48145928]
[1673478964675,0.00130809,17578.0,17577.0,3.48145928]
[1673478964878,0.15365219,17579.0,17577.0,3.48145928]
[1673478965137,0.15365219,17579.0,17578.0,2.24947753]
[1673478965400,0.15365219,17579.0,17578.0,1.55462503]
[1673478965672,0.15365219,17579.0,17578.0,1.66172503]
[1673478965945,0.0073441,17579.0,17578.0,1.76912503]
[1673478966207,0.0073441,17579.0,17578.0,3.29432503]
[1673478966705,0.0073441,17579.0,17578.0,3.31432503]
[1673478966954,0.25,17582.0,17578.0,3.29432503]
[1673478967208,0.0038578,17579.0,17578.0,2.31274593]
[1673478967472,0.25,17582.0,17579.0,0.0038578]
[1673478967738,0.25,17582.0,17581.0,0.2156]
[1673478968000,0.15,17583.0,17581.0,1.6338706]
[1673478968250,0.14636,17583.0,17582.0,1.05638032]
[1673478968495,0.74636,17583.0,17582.0,0.556187]
[1673478969296,0.76467967,17583.0,17582.0,0.343]
[1673478969509,0.76467967,17583.0,17582.0,0.556187]
[1673478969510,1.06467967,17583.0,17582.0,0.556187]
[1673478969857,1.06467967,17583.0,17582.0,0.23]
[1673478970060,1.06467967,17583.0,17582.0,1.06021418]
[1673478970334,0.46467967,17583.0,17582.0,1.70170022]
[1673478970587,0.16467967,17583.0,17582.0,1.69970022]
[1673478970838,0.46467967,17583.0,17582.0,2.23849504]
[1673478971085,0.44636,17583.0,17582.0,2.23849504]
[1673478971338,0.44636,17583.0,17582.0,1.19567304]
[1673478971588,0.44636,17583.0,17582.0,0.84148604]
[1673478971842,0.44636,17583.0,17582.0,1.19575767]
[1673478971843,0.14636,17583.0,17582.0,1.19575767]
[1673478972622,0.14636,17583.0,17582.0,1.19775767]
[1673478973154,0.74636,17583.0,17582.0,0.558187]
[1673478973414,1.04636,17583.0,17582.0,0.202]
[1673478973701,1.05486,17583.0,17582.0,0.202]
[1673478974181,0.16467967,17583.0,17582.0,1.23728971]
[1673478974441,0.14636,17583.0,17582.0,1.77386081]
[1673478974688,2.14636,17583.0,17582.0,1.18747056]
[1673478974952,2.14636,17583.0,17582.0,1.18547056]
[1673478975210,0.14636,17583.0,17582.0,1.18547056]
[1673478975724,0.14636,17583.0,17582.0,1.29337056]
[1673478976520,0.14636,17583.0,17582.0,1.35237056]
[1673478977292,0.14636,17583.0,17582.0,1.29337056]
[1673478977552,0.14636,17583.0,17582.0,1.42537056]
[1673478979875,0.14636,17583.0,17582.0,1.42545519]
[1673478982144,0.14636,17583.0,17582.0,1.95234117]
[1673478983138,0.14636,17583.0,17582.0,1.42545519]
[1673478986181,0.14636,17583.0,17582.0,2.12489283]
[1673478986712,0.1463,17583.0,17582.0,0.688187]
[1673478986964,0.1463,17583.0,17582.0,0.332]
[1673478987217,0.1463,17583.0,17582.0,1.2253312]
[1673478987718,0.1463,17583.0,17582.0,1.85120807]
[1673478989515,0.1463,17583.0,17582.0,0.688187]
[1673478989763,0.4463,17583.0,17582.0,0.332]
[1673478990262,0.4463,17583.0,17582.0,0.68827163]
[1673478990497,0.4463,17583.0,17582.0,0.688187]
[1673478990717,0.4463,17583.0,17582.0,0.332]
[1673478991245,0.4463,17583.0,17582.0,0.33208463]
[1673478991499,0.4463,17583.0,17582.0,0.332]
[1673478994297,0.4463,17583.0,17582.0,0.33208463]
[1673478994550,0.4463,17583.0,17582.0,0.332]
[1673478995572,0.4463,17583.0,17582.0,0.33208463]
[1673478996326,0.1463,17583.0,17582.0,1.09170647]
[1673478996577,0.1463,17583.0,17582.0,1.98764997]
[1673478997989,0.1463,17583.0,17582.0,1.34264769]
[1673478998414,0.0089625,17584.0,17582.0,1.55884769]
[1673478998677,0.0089625,17584.0,17583.0,1.0001949]
[1673478998926,0.0089625,17584.0,17583.0,1.50778481]
[1673479000453,0.0089625,17584.0,17583.0,2.24452733]
[1673479000717,0.0089625,17584.0,17583.0,1.16092952]
[1673479000963,0.00879793,17584.0,17583.0,1.30092952]
[1673479001218,0.00879793,17584.0,17583.0,3.30092952]
[1673479001473,0.00879793,17584.0,17583.0,5.30092952]
[1673479001690,0.00879793,17584.0,17583.0,5.88032058]
[1673479001983,0.00879793,17584.0,17583.0,3.88032058]
[1673479002241,0.00879793,17584.0,17583.0,1.88032058]
[1673479002486,0.00879793,17584.0,17583.0,1.74032058]
[1673479002745,0.00879793,17584.0,17583.0,0.688187]
[1673479003006,0.00879793,17584.0,17583.0,0.332]
[1673479004260,0.00879793,17584.0,17583.0,0.688187]
[1673479005030,0.00879793,17584.0,17583.0,0.332]
[1673479007404,0.00879793,17584.0,17583.0,0.132]
[1673479007405,0.52695643,17584.0,17583.0,0.132]
[1673479007714,1.42695643,17584.0,17583.0,0.132]
[1673479008251,0.91729793,17584.0,17583.0,0.132]
[1673479008509,1.49180287,17584.0,17583.0,0.132]
[1673479008769,1.72663988,17584.0,17583.0,0.132]
[1673479009275,1.15213494,17584.0,17583.0,0.132]
[1673479009576,0.25213494,17584.0,17583.0,0.38287789]
[1673479009846,0.01729793,17584.0,17583.0,0.1452]
[1673479010357,0.52816389,17584.0,17583.0,0.132]
[1673479010648,0.01729793,17584.0,17583.0,0.132]
[1673479011114,0.01729793,17584.0,17583.0,0.13208462]
[1673479011923,0.31729793,17584.0,17583.0,0.13208462]
[1673479012436,0.31729793,17584.0,17583.0,0.132]
[1673479012689,0.31729793,17584.0,17583.0,0.13208462]
[1673479012944,0.31729793,17584.0,17583.0,0.132]
[1673479014228,0.82816389,17584.0,17583.0,0.132]
[1673479014998,0.82816389,17584.0,17583.0,0.13208462]
[1673479015249,0.82816389,17584.0,17583.0,0.132]
[1673479016028,0.82816389,17584.0,17583.0,0.13208462]
[1673479016751,0.82816389,17584.0,17583.0,0.132]
[1673479018585,0.82816389,17584.0,17583.0,0.13208462]
[1673479021886,0.82816389,17584.0,17583.0,0.132]
[1673479022640,0.82816389,17584.0,17583.0,0.13208462]
[1673479022885,0.82816389,17584.0,17583.0,0.152]
[1673479023697,0.51966389,17584.0,17583.0,0.8868237]
[1673479023914,0.00879793,17584.0,17583.0,1.2430107]
[1673479024693,0.00879793,17584.0,17583.0,1.77947061]
[1673479025468,0.00879793,17584.0,17583.0,1.97947061]
[1673479026296,0.00879793,17584.0,17583.0,0.70815921]
[1673479026544,0.00879793,17584.0,17583.0,0.35188759]
[1673479026545,0.51966389,17584.0,17583.0,0.35188759]
[1673479026820,0.81966389,17584.0,17583.0,0.35188759]
[1673479027320,0.81966389,17584.0,17583.0,0.70807459]
[1673479027841,2.81966389,17584.0,17583.0,0.70807459]
[1673479028092,2.81966389,17584.0,17583.0,0.35188759]
[1673479033688,2.81966389,17584.0,17583.0,0.35197221]
[1673479033956,2.81966389,17584.0,17583.0,0.35188759]
[1673479034984,2.30879793,17584.0,17583.0,0.35188759]
[1673479035965,2.30879793,17584.0,17583.0,0.35197221]
[1673479036212,2.30879793,17584.0,17583.0,0.70815921]
[1673479036578,2.30879793,17584.0,17583.0,0.70807459]
[1673479036718,2.30879793,17584.0,17583.0,0.35188759]
[1673479037238,2.30879793,17584.0,17583.0,0.35197221]
[1673479037761,2.81966389,17584.0,17583.0,0.35188759]
[1673479040142,2.30879793,17584.0,17583.0,0.35188759]
[1673479040921,2.30879793,17584.0,17583.0,0.35197221]
[1673479041193,2.82029784,17584.0,17583.0,0.35197221]
[1673479041767,2.82029784,17584.0,17583.0,0.35188759]
[1673479042292,2.82029573,17584.0,17583.0,0.35188759]
[1673479042533,2.82034386,17584.0,17583.0,0.35188759]
[1673479043112,2.30879793,17584.0,17583.0,0.35188759]
[1673479044155,2.88330287,17584.0,17583.0,0.35188759]
[1673479044728,2.30879793,17584.0,17583.0,0.35188759]
[1673479044974,2.30879793,17584.0,17583.0,0.35197221]
[1673479045487,2.30879793,17584.0,17583.0,0.35188759]
[1673479045992,2.30879793,17584.0,17583.0,0.35179577]
[1673479046232,2.88330287,17584.0,17583.0,0.35179577]
[1673479046483,2.88330287,17584.0,17583.0,0.15179577]
[1673479046484,2.89180287,17584.0,17583.0,0.15179577]
[1673479046731,2.37673323,17584.0,17583.0,0.15179577]
[1673479049935,2.97673323,17584.0,17583.0,0.15179577]
[1673479054295,2.07673323,17584.0,17583.0,0.15179577]
[1673479054545,2.65188519,17584.0,17583.0,0.15179577]
[1673479054792,2.07673323,17584.0,17583.0,0.02]
[1673479055050,2.65188819,17584.0,17583.0,0.02]
[1673479055821,2.95788819,17584.0,17583.0,0.031]
[1673479056082,2.95188819,17584.0,17583.0,0.02]
[1673479056324,2.95782125,17584.0,17583.0,0.03]
[1673479056828,2.38273323,17584.0,17583.0,0.03]
[1673479057823,2.95782335,17584.0,17583.0,0.03]
[1673479058554,2.38273323,17584.0,17583.0,0.03]
[1673479059107,2.95777869,17584.0,17583.0,0.03]
[1673479059361,2.08273323,17584.0,17583.0,0.125]
[1673479059612,2.07423323,17584.0,17583.0,0.19549282]
[1673479059854,2.58533651,17584.0,17583.0,0.19549282]
[1673479060100,2.57933651,17584.0,17583.0,0.09049282]
[1673479060629,2.57933651,17584.0,17583.0,0.10049282]
[1673479060630,2.58533651,17584.0,17583.0,0.10049282]
[1673479060876,2.57933651,17584.0,17583.0,0.44667982]
[1673479061129,2.81990121,17584.0,17583.0,0.44667982]
[1673479061379,2.82840121,17584.0,17583.0,0.44667982]
[1673479061878,2.83540121,17584.0,17583.0,0.44967982]
[1673479062383,2.83540121,17584.0,17583.0,0.023]
[1673479062384,2.32429793,17584.0,17583.0,0.023]
[1673479063680,2.89934339,17584.0,17583.0,0.023]
[1673479064195,2.95877971,17584.0,17583.0,0.023]
[1673479066708,2.95877971,17584.0,17583.0,0.02293577]
[1673479068707,2.38373425,17584.0,17583.0,0.02293577]
[1673479068951,2.38373425,17584.0,17583.0,0.08577712]
[1673479069975,2.38373425,17584.0,17583.0,0.02293577]
[1673479071957,2.89511338,17584.0,17583.0,0.11793577]
[1673479072237,2.83567706,17584.0,17583.0,0.47412277]
[1673479072759,2.83567706,17584.0,17583.0,0.02293577]
[1673479073024,2.32429793,17584.0,17583.0,0.02293577]
[1673479075421,2.83568843,17584.0,17583.0,0.02293577]
[1673479075934,2.83568843,17584.0,17583.0,0.11793577]
[1673479076186,2.83568843,17584.0,17583.0,0.18246273]
[1673479077478,2.83568843,17584.0,17583.0,0.11801676]
[1673479078792,0.83568843,17584.0,17583.0,0.11801676]
[1673479079036,0.83568843,17584.0,17583.0,0.02293577]
[1673479079610,0.83568843,17584.0,17583.0,0.02301676]
[1673479081842,0.83568843,17584.0,17583.0,0.11801676]
[1673479082112,0.83568843,17584.0,17583.0,0.08747083]
[1673479082889,0.82718843,17584.0,17583.0,0.08747083]
[1673479083134,0.82718843,17584.0,17583.0,0.78711704]
[1673479083135,0.31579793,17584.0,17583.0,0.78711704]
[1673479083898,0.31579793,17584.0,17583.0,0.77211704]
[1673479085191,0.31579793,17584.0,17583.0,1.12830404]
[1673479086487,0.31579793,17584.0,17583.0,1.64967623]
[1673479087520,0.30879793,17584.0,17583.0,1.64667623]
[1673479087831,0.30879793,17584.0,17583.0,1.70967623]
[1673479088029,0.00879793,17584.0,17583.0,1.70967623]
[1673479088282,0.30879793,17584.0,17583.0,1.70967623]
[1673479089530,0.00879793,17584.0,17583.0,1.70967623]
[1673479089792,0.00879793,17584.0,17583.0,1.90967623]
[1673479090291,0.008555,17584.0,17583.0,1.90967623]
[1673479094261,0.008555,17584.0,17583.0,1.84522216]
[1673479096355,0.008495,17584.0,17583.0,1.84522216]
[1673479099942,0.00831219,17584.0,17583.0,1.84522216]
[1673479100201,0.00810182,17584.0,17583.0,1.84522216]
[1673479100967,0.00786216,17584.0,17583.0,1.84522216]
[1673479101217,0.00786216,17584.0,17583.0,2.42056438]
[1673479102007,0.00762186,17584.0,17583.0,2.42056438]
[1673479103006,0.00738265,17584.0,17583.0,2.42056438]
[1673479104249,0.00714345,17584.0,17583.0,2.42056438]
[1673479105013,0.00690425,17584.0,17583.0,2.42056438]
[1673479105809,0.00690425,17584.0,17583.0,1.72091817]
[1673479106068,0.00690425,17584.0,17583.0,0.62412277]
[1673479106069,0.00666506,17584.0,17583.0,0.62412277]
[1673479106323,0.81805556,17584.0,17583.0,0.26793577]
[1673479107087,0.81781641,17584.0,17583.0,0.26793577]
[1673479107352,0.30642591,17584.0,17583.0,0.26793577]
[1673479107626,0.81767211,17584.0,17583.0,0.26793577]
[1673479108116,0.81743295,17584.0,17583.0,0.26793577]
[1673479108385,2.81743295,17584.0,17583.0,0.26793577]
[1673479108649,2.30618675,17584.0,17583.0,0.26793577]
[1673479109201,3.88949306,17584.0,17583.0,0.06793577]
[1673479109485,3.3144476,17584.0,17583.0,0.06793577]
[1673479109734,3.3144476,17584.0,17583.0,0.00493577]
[1673479109982,3.56420844,17584.0,17583.0,0.00493577]
[1673479110240,3.57220844,17584.0,17583.0,0.01393577]
[1673479110482,3.56420844,17584.0,17583.0,0.00493577]
[1673479110757,3.57220844,17584.0,17583.0,0.01493577]
[1673479111045,2.27220844,17584.0,17583.0,0.01493577]
[1673479112385,2.57220844,17584.0,17583.0,0.01493577]
[1673479116342,3.08321131,17584.0,17583.0,0.01493577]
[1673479119575,3.08321131,17584.0,17583.0,0.07601292]
[1673479121623,2.56370844,17584.0,17583.0,0.07601292]
[1673479121872,3.07471131,17584.0,17583.0,0.07601292]
[1673479122374,2.26370844,17584.0,17583.0,1.55334283]
[1673479122622,2.26370844,17584.0,17583.0,1.55302346]
[1673479123381,2.25570844,17584.0,17583.0,1.54302346]
[1673479123623,0.26270844,17584.0,17583.0,1.55202346]
[1673479124129,0.25570844,17584.0,17583.0,1.54302346]
[1673479124383,0.26070844,17584.0,17583.0,3.54302346]
[1673479124644,0.56070844,17584.0,17583.0,3.54302346]
[1673479126383,0.56070844,17584.0,17583.0,3.02152157]
[1673479126639,0.62013809,17584.0,17583.0,2.36112277]
[1673479126888,1.13114096,17584.0,17583.0,0.00493577]
[1673479127413,1.13964096,17584.0,17583.0,0.00493577]
[1673479127678,1.13964096,17584.0,17583.0,0.36112277]
[1673479128200,3.13964096,17584.0,17583.0,0.36112277]
[1673479128820,3.13964096,17584.0,17583.0,0.00493577]
[1673479131937,3.13964096,17584.0,17583.0,0.00484259]
[1673479132189,2.56920844,17584.0,17583.0,0.67914033]
[1673479132438,2.26070844,17584.0,17583.0,1.39309952]
[1673479132753,2.26070844,17584.0,17583.0,1.67578532]
[1673479132955,0.26070844,17584.0,17583.0,1.67578532]
[1673479134733,0.56070844,17584.0,17583.0,1.67578532]
[1673479135764,0.56070844,17584.0,17583.0,1.15542163]
[1673479136511,0.56070844,17584.0,17583.0,1.15550262]
[1673479137026,0.56070844,17584.0,17583.0,1.15542163]
[1673479141406,0.62013797,17584.0,17583.0,1.15542163]
[1673479142208,0.56070844,17584.0,17583.0,1.15542163]
[1673479142953,0.31070844,17584.0,17583.0,1.15542163]
[1673479143455,0.01070844,17584.0,17583.0,1.15542163]
[1673479145265,0.01070844,17584.0,17583.0,1.06042163]
[1673479145564,0.01070844,17584.0,17583.0,1.06050262]
[1673479147795,0.01070844,17584.0,17583.0,0.36102959]
[1673479148054,0.01070844,17584.0,17583.0,0.00484259]
[1673479148055,0.52171131,17584.0,17583.0,0.00484259]
[1673479148310,0.82171131,17584.0,17583.0,0.00484259]
[1673479149625,0.31070844,17584.0,17583.0,0.00484259]
[1673479151113,0.82171131,17584.0,17583.0,0.00484259]
[1673479152918,0.82171131,17584.0,17583.0,0.00492358]
[1673479153740,0.82171131,17584.0,17583.0,0.09471479]
[1673479153964,0.31070844,17584.0,17583.0,0.61606276]
[1673479154716,0.31070844,17584.0,17583.0,0.97224976]
[1673479155700,0.31070844,17584.0,17583.0,0.61606276]
[1673479155947,0.31070844,17584.0,17583.0,0.52619056]
[1673479156213,0.82171131,17584.0,17583.0,0.52610441]
[1673479157225,0.01070844,17584.0,17583.0,0.88229141]
[1673479157477,0.01070844,17584.0,17583.0,1.40346034]
[1673479157736,0.01070844,17584.0,17583.0,1.56380637]
[1673479158673,0.01070844,17584.0,17583.0,1.0424584]
[1673479158675,0.01070844,17584.0,17583.0,1.2034584]
[1673479158934,0.01070844,17584.0,17583.0,1.79827285]
[1673479159197,0.01047196,17584.0,17583.0,1.79827285]
[1673479159961,0.01023548,17584.0,17583.0,1.79827285]
[1673479160931,0.00523548,17584.0,17583.0,1.79827285]
[1673479161165,0.00499903,17584.0,17583.0,1.34110392]
[1673479162172,0.00499903,17584.0,17583.0,1.86081823]
[1673479162173,0.00476259,17584.0,17583.0,1.86081823]
[1673479164030,0.00452616,17584.0,17583.0,1.86081823]
[1673479164795,0.00452616,17584.0,17583.0,1.34110392]
[1673479165061,0.00428973,17584.0,17583.0,1.34110392]
[1673479165836,0.00428973,17584.0,17583.0,1.34118472]
[1673479170895,0.00428973,17584.0,17583.0,0.74637027]
[1673479171143,0.60428973,17584.0,17583.0,0.06875644]
[1673479171646,0.90428973,17584.0,17583.0,0.06875644]
[1673479172396,1.41586712,17584.0,17583.0,0.06875644]
[1673479172898,0.90428973,17584.0,17583.0,0.06875644]
[1673479174640,1.41583562,17584.0,17583.0,0.06875644]
[1673479176384,1.41583562,17584.0,17583.0,0.15717392]
[1673479176626,1.41583562,17584.0,17583.0,0.06883725]
[1673479176867,1.41583562,17584.0,17583.0,0.06875644]
[1673479179898,0.81583562,17584.0,17583.0,0.06875644]
[1673479180398,0.81583562,17584.0,17583.0,0.68471682]
[1673479181390,0.30428973,17584.0,17583.0,0.68471682]
[1673479181639,0.30428973,17584.0,17583.0,0.82529119]
[1673479181882,0.81582482,17584.0,17583.0,0.82529119]
[1673479182882,0.81582482,17584.0,17583.0,1.18147819]
[1673479184161,0.81582482,17584.0,17583.0,0.56551781]
[1673479184421,0.81582482,17584.0,17583.0,0.06875644]
[1673479186984,0.81582482,17584.0,17583.0,0.07029604]
[1673479186985,0.8158624,17584.0,17583.0,0.07029604]
[1673479187226,0.8158624,17584.0,17583.0,0.06875644]
[1673479187718,0.81586538,17584.0,17583.0,0.06867482]
[1673479187965,1.32744053,17584.0,17583.0,0.1666104]
[1673479188242,0.81586538,17584.0,17583.0,0.16815]
[1673479189196,0.81586538,17584.0,17583.0,0.1666104]
[1673479189442,0.81586538,17584.0,17583.0,0.06867482]
[1673479189676,1.41586538,17584.0,17583.0,0.06867482]
[1673479190705,1.41586538,17584.0,17583.0,0.07021442]
[1673479190944,1.41586538,17584.0,17583.0,0.06867482]
[1673479191684,1.9274124,17584.0,17583.0,0.07021442]
[1673479193118,1.9274124,17584.0,17583.0,0.06867482]
[1673479194371,1.3274124,17584.0,17583.0,0.1666104]
[1673479195125,1.3274124,17584.0,17583.0,0.16676415]
[1673479195379,1.3274124,17584.0,17583.0,0.06867482]
[1673479199934,0.81586538,17584.0,17583.0,0.06867482]
[1673479201391,0.81586538,17584.0,17583.0,0.06699582]
[1673479203113,1.32754935,17584.0,17583.0,0.06699582]
[1673479204635,0.81586538,17584.0,17583.0,0.06699582]
[1673479210224,0.30428973,17584.0,17583.0,0.06699582]
[1673479210995,0.87932674,17584.0,17583.0,0.06699582]
[1673479211261,0.30428973,17584.0,17583.0,0.06699582]
[1673479211526,0.87932674,17584.0,17583.0,0.06699582]
[1673479212034,0.30428973,17584.0,17583.0,0.06699582]
[1673479218967,0.87932674,17584.0,17583.0,0.06699582]
[1673479222786,0.87932674,17584.0,17583.0,0.06691252]
[1673479234271,0.87932674,17584.0,17583.0,0.06698602]
[1673479234756,0.87932674,17584.0,17583.0,0.06691252]
[1673479235231,0.87932674,17584.0,17583.0,0.06698602]
[1673479235772,0.87932674,17584.0,17583.0,0.06691252]
[1673479236257,0.87932674,17584.0,17583.0,0.06698602]
[1673479236492,0.87932674,17584.0,17583.0,0.06691252]
[1673479237943,0.87932674,17584.0,17583.0,0.06831299]
[1673479238433,0.87932674,17584.0,17583.0,0.06691252]
[1673479239163,0.87932674,17584.0,17583.0,0.06831299]
[1673479240513,0.87932674,17584.0,17583.0,0.06691252]
[1673479240831,0.87932674,17584.0,17583.0,0.06831299]
[1673479242116,0.30428973,17584.0,17583.0,0.06831299]
[1673479242346,0.30428973,17584.0,17583.0,0.21830843]
[1673479242580,0.30428973,17584.0,17583.0,0.57449543]
[1673479244003,0.30428973,17584.0,17583.0,0.57441713]
[1673479245225,0.30428973,17584.0,17583.0,0.06823469]
[1673479245474,0.30428973,17584.0,17583.0,0.06683422]
[1673479245971,0.87932674,17584.0,17583.0,0.06683422]
[1673479246451,0.30428973,17584.0,17583.0,0.06683422]
[1673479246691,0.30428973,17584.0,17583.0,0.06797016]
[1673479247240,0.30428973,17584.0,17583.0,0.42415716]
[1673479247967,0.87932674,17584.0,17583.0,0.06683422]
[1673479248215,0.30428973,17584.0,17583.0,0.06797016]
[1673479248455,0.87932674,17584.0,17583.0,0.06797016]
[1673479249718,0.87932674,17584.0,17583.0,0.42415716]
[1673479250218,0.87932674,17584.0,17583.0,0.42385716]
[1673479250961,0.87932674,17584.0,17583.0,0.06767016]
[1673479251221,0.30428973,17584.0,17583.0,0.06767016]
[1673479251512,0.30428973,17584.0,17583.0,0.42385716]
[1673479252223,0.30428973,17584.0,17583.0,0.06767016]
[1673479253202,0.30428973,17584.0,17583.0,0.57374535]
[1673479253473,0.81633414,17584.0,17583.0,0.42385716]
[1673479253738,0.30428973,17584.0,17583.0,0.06767016]